bitfinex-derivatives/quotes_ETHF0:USTF0_20210405
["timestamp","ask_amount","ask_price","bid_price","bid_amount"]
[1617652759071,7.004e-05,2105.1,2105.0,37.88]
[1617652759272,0.27967717,2105.7,2105.0,37.88]
[1617652760171,0.27967717,2105.7,2105.0,38.8243]
[1617652760673,0.27967717,2105.7,2105.6,2.90695]
[1617652760873,0.27967717,2105.7,2105.6,32.90695]
[1617652761073,0.27967717,2105.7,2105.6,38.75695]
[1617652761273,0.27966981,2105.8,2105.6,38.75695]
[1617652762876,0.27959426,2105.9,2105.6,38.75695]
[1617652763578,0.27959426,2105.9,2105.6,26.75695]
[1617652763976,0.27960049,2105.8,2105.6,26.75695]
[1617652764578,77.54600049,2105.8,2105.6,26.75695]
[1617652764779,77.54600049,2105.8,2105.7,2.90695]
[1617652765082,77.2664,2105.8,2105.7,8.74695]
[1617652765279,77.2664,2105.8,2105.7,29.6539]
[1617652765679,3.18586323,2106.2,2105.7,29.6539]
[1617652765879,3.18586323,2106.2,2105.9,73.0222]
[1617652766280,3.18586323,2106.2,2106.0,5.93]
[1617652766781,3.18586323,2106.2,2106.1,2.90695]
[1617652767181,3.18586323,2106.2,2106.1,8.81695]
[1617652769787,3.35321453,2106.2,2106.1,8.81695]
[1617652770785,3.35321453,2106.2,2106.1,5.91]
[1617652770985,3.57641326,2106.2,2106.1,5.91]
[1617652771185,3.57641326,2106.2,2105.7,5.78]
[1617652771386,65.9888,2105.8,2105.6,2.90695]
[1617652771788,66.26774799,2105.8,2105.7,5.74]
[1617652772689,69.17469799,2105.8,2105.7,5.74]
[1617652772890,68.89575,2105.8,2105.7,5.74]
[1617652773291,2.90695,2105.8,2105.7,5.74]
[1617652773891,76.21222298,2106.1,2105.7,76.4793]
[1617652774690,79.11917298,2106.1,2106.0,2.90695]
[1617652774891,78.84035,2106.1,2106.0,2.90695]
[1617652775091,78.84035,2106.1,2106.0,8.72695]
[1617652776796,2.90695,2106.1,2106.0,8.72695]
[1617652777194,3.86605,2106.1,2106.0,5.82]
[1617652777597,3.86605,2106.1,2104.6,54.195]
[1617652777598,2.90695,2106.1,2105.0,5.77]
[1617652777798,61.8154,2106.0,2105.0,5.77]
[1617652777994,61.8154,2106.0,2104.8,1.62]
[1617652778394,61.8154,2106.0,2105.1,5.92]
[1617652778795,61.8154,2106.0,2105.4,2.90695]
[1617652779095,61.8154,2106.0,2105.5,5.77]
[1617652780895,2.90695,2105.6,2105.5,5.77]
[1617652781095,5.02395,2105.6,2105.5,5.77]
[1617652785604,66.41731953,2105.9,2105.5,5.77]
[1617652786908,66.41731953,2105.9,2105.8,2.90695]
[1617652787305,66.41731953,2105.9,2105.8,8.61695]
[1617652787505,66.41731953,2105.9,2105.8,5.71]
[1617652787705,66.1387,2105.9,2105.8,5.71]
[1617652788006,67.0766,2105.9,2105.8,6.658]
[1617652788210,67.0766,2105.9,2105.2,5.82]
[1617652788407,66.58476384,2105.9,2105.8,5.84]
[1617652788706,66.58476384,2105.9,2105.2,5.88]
[1617652788906,66.58476384,2105.9,2105.4,2.90695]
[1617652789106,66.41747759,2105.9,2105.4,2.90695]
[1617652789307,67.35657759,2105.9,2105.5,5.72]
[1617652790007,66.41747759,2105.9,2105.5,5.72]
[1617652790208,0.2787872,2105.8,2105.5,5.72]
[1617652790407,2.5613872,2105.8,2105.5,5.72]
[1617652790811,2.90695,2105.6,2105.5,5.72]
[1617652796715,5.04015,2105.6,2105.5,5.72]
[1617652797916,5.04015,2105.6,2104.6,5.81]
[1617652798116,2.0,2105.5,2104.0,20.90695]
[1617652798316,0.27900773,2105.4,2103.5,4.571]
[1617652798516,0.27900773,2105.4,2104.7,5.86]
[1617652798718,0.27900773,2105.4,2104.2,2.571]
[1617652798916,0.27900773,2105.4,2104.4,2.90695]
[1617652799118,0.27900773,2105.4,2104.8,5.88]
[1617652799317,0.27900773,2105.4,2104.5,5.84]
[1617652799719,0.27900773,2105.4,2104.9,5.83]
[1617652800118,0.27900773,2105.4,2104.5,5.76]
[1617652800319,0.27900773,2105.4,2105.0,5.78]
[1617652800721,0.27900773,2105.4,2104.5,5.93]
[1617652801020,0.27900773,2105.4,2105.1,5.93]
[1617652801421,0.27900773,2105.4,2104.9,1.12]
[1617652801620,0.27900773,2105.4,2105.2,5.84]
[1617652802020,0.27900773,2105.4,2104.9,5.86]
[1617652802221,1.11604617,2106.2,2104.8,2.90695]
[1617652802222,0.27898241,2105.6,2105.3,5.8]
[1617652802622,0.66955778,2105.9,2104.9,8.3763]
[1617652802623,0.27897476,2105.8,2104.9,8.3763]
[1617652802823,0.27897476,2105.8,2105.4,5.78]
[1617652803022,0.27897476,2105.8,2105.7,2.90695]
[1617652803223,0.27897476,2105.8,2105.7,6.40695]
[1617652803423,0.27893541,2106.1,2105.7,6.40695]
[1617652804623,0.27893267,2106.2,2105.7,6.40695]
[1617652805026,0.27893648,2106.1,2106.0,2.90695]
[1617652805428,0.27893648,2106.1,2106.0,8.62695]
[1617652806431,0.44631561,2106.1,2106.0,8.62695]
[1617652806929,3.35326561,2106.1,2106.0,8.62695]
[1617652807130,2.90695,2106.1,2106.0,8.62695]
[1617652808230,3.35360704,2106.1,2106.0,8.62695]
[1617652808429,3.18610381,2106.1,2106.0,8.62695]
[1617652810035,2.90695,2106.1,2106.0,8.62695]
[1617652810433,0.27911576,2106.3,2106.0,8.62695]
[1617652810633,0.89317045,2106.9,2106.0,10.76415]
[1617652810833,13.0,2107.8,2106.0,10.76415]
[1617652810834,0.27909861,2106.4,2106.0,10.76415]
[1617652811032,0.27909861,2106.4,2106.3,2.90695]
[1617652811233,3.80006554,2107.0,2106.3,2.90695]
[1617652811234,0.4465204,2106.9,2106.3,4.90695]
[1617652811433,0.4465204,2106.9,2106.4,5.85]
[1617652811637,2.90695,2107.0,2106.4,5.85]
[1617652813035,2.90695,2107.0,2106.9,2.90695]
[1617652813436,2.90695,2107.0,2106.9,8.59695]
[1617652815238,2.90695,2107.0,2106.9,9.55515]
[1617652815738,2.90695,2107.0,2106.9,8.59695]
[1617652817141,3.86815,2107.0,2106.9,9.53945]
[1617652817941,3.86815,2107.0,2106.9,8.59695]
[1617652819343,2.90695,2107.0,2106.9,8.59695]
[1617652820843,2.90695,2107.0,2106.9,5.69]
[1617652821243,2.90695,2107.0,2106.5,2.90695]
[1617652821443,2.90695,2107.0,2106.9,5.78]
[1617652821844,2.90695,2107.0,2106.6,5.91]
[1617652822042,2.90695,2107.0,2106.9,5.7]
[1617652822442,2.90695,2107.0,2106.6,5.85]
[1617652822643,2.90695,2107.0,2106.9,5.91]
[1617652823043,2.90695,2107.0,2106.6,5.78]
[1617652823444,2.90695,2107.0,2106.9,5.89]
[1617652823645,2.90695,2107.0,2106.6,5.85]
[1617652824045,2.90695,2107.0,2106.9,5.77]
[1617652824246,2.90695,2107.0,2106.6,5.85]
[1617652824645,2.90695,2107.0,2106.9,5.76]
[1617652825047,2.90695,2107.0,2106.6,5.74]
[1617652825246,2.90695,2106.7,2106.6,5.74]
[1617652825446,2.90695,2106.7,2106.5,2.90695]
[1617652825646,2.90695,2106.7,2106.6,5.72]
[1617652827347,2.90695,2107.0,2106.6,5.72]
[1617652829249,2.90695,2107.0,2106.9,2.90695]
[1617652829652,2.90695,2107.0,2106.9,8.62695]
[1617652830457,1.0,2107.3,2106.9,8.62695]
[1617652831250,1.0,2107.3,2107.2,2.90695]
[1617652831853,1.0,2107.3,2107.2,8.68695]
[1617652835155,1.0,2107.3,2107.2,5.78]
[1617652835357,1.0,2107.3,2107.2,6.7308]
[1617652835556,1.0,2107.3,2105.9,5.7]
[1617652835757,3.4734,2107.3,2105.9,5.7]
[1617652835958,3.4734,2107.3,2107.2,5.88]
[1617652836157,3.4734,2107.3,2106.9,5.93]
[1617652836357,3.4734,2107.3,2105.9,5.63]
[1617652836558,3.4734,2107.3,2107.2,5.89]
[1617652836757,3.4734,2107.3,2107.0,5.89]
[1617652836959,3.4734,2107.3,2105.9,5.79]
[1617652837158,3.4734,2107.3,2107.2,5.32]
[1617652837460,3.4734,2107.3,2106.7,2.90695]
[1617652837657,4.4253,2107.3,2106.8,1.83]
[1617652837863,4.4253,2107.3,2107.2,4.08]
[1617652838060,3.4734,2107.3,2106.7,2.90695]
[1617652838258,3.4734,2107.3,2106.9,5.86]
[1617652838457,3.4734,2107.3,2107.2,5.96]
[1617652838664,3.4734,2107.3,2106.7,2.90695]
[1617652838858,3.4734,2107.3,2107.0,5.97]
[1617652839059,1.0,2107.3,2107.2,5.96]
[1617652839259,1.0,2107.3,2106.9,5.8]
[1617652839458,1.0,2107.3,2107.1,5.81]
[1617652839660,1.0,2107.3,2107.2,5.94]
[1617652839858,1.0,2107.3,2107.0,5.97]
[1617652840060,1.0,2107.3,2106.7,2.90695]
[1617652840258,1.0,2107.3,2107.2,5.69]
[1617652840661,1.0,2107.3,2106.8,5.88]
[1617652840858,1.0,2107.3,2107.2,5.96]
[1617652841259,1.0,2107.3,2107.2,2.90695]
[1617652841458,1.0,2107.3,2107.2,8.78695]
[1617652841859,1.0,2107.3,2107.2,2.90695]
[1617652842058,1.0,2107.3,2107.2,8.83695]
[1617652843259,1.0,2107.3,2107.2,5.93]
[1617652843659,1.0,2107.3,2106.9,5.89]
[1617652843860,3.1159,2107.3,2106.9,5.89]
[1617652844059,3.1159,2107.3,2107.2,5.93]
[1617652844260,3.1159,2107.3,2106.9,5.91]
[1617652844661,3.1159,2107.3,2107.2,5.88]
[1617652844861,1.0,2107.3,2106.9,5.82]
[1617652845263,1.0,2107.3,2107.1,2.90695]
[1617652845661,1.0,2107.3,2107.2,5.85]
[1617652850769,1.0,2107.3,2107.2,7.85]
[1617652852070,1.0,2107.3,2107.2,5.85]
[1617652859376,3.90695,2107.3,2107.2,5.85]
[1617652861677,16.90695,2107.3,2107.2,5.85]
[1617652863880,16.90695,2107.3,2106.9,5.73]
[1617652864080,16.90695,2107.3,2107.2,5.77]
[1617652864480,70.3526,2107.0,2106.9,5.72]
[1617652864680,70.3526,2107.0,2106.8,2.90695]
[1617652865082,70.3526,2107.0,2106.9,5.77]
[1617652865483,2.90695,2107.0,2106.9,5.77]
[1617652865685,14.0,2107.3,2106.9,69.4759]
[1617652867485,14.0,2107.3,2107.2,2.90695]
[1617652867686,14.0,2107.3,2107.2,5.26915]
[1617652867885,14.0,2107.3,2107.2,11.08915]
[1617652873904,14.0,2107.3,2107.2,13.08915]
[1617652875404,13.0,2107.3,2107.2,13.08915]
[1617652875805,13.0,2107.3,2107.2,12.08915]
[1617652876805,13.0,2107.3,2107.2,10.08915]
[1617652877807,13.0,2107.3,2107.2,7.72695]
[1617652890119,13.0,2107.3,2107.2,10.52895]
[1617652892926,13.0,2107.3,2107.2,7.72695]
[1617652897028,13.0,2107.3,2107.2,8.68705]
[1617652897228,13.0,2107.3,2107.2,10.38675]
[1617652897427,13.0,2107.3,2107.2,12.38675]
[1617652902135,13.0,2107.3,2107.2,9.72695]
[1617652902934,13.0,2107.3,2107.2,7.72695]
[1617652909139,13.9537,2107.3,2107.2,8.66525]
[1617652909539,13.9537,2107.3,2107.2,7.72695]
[1617652909741,13.0,2107.3,2107.2,7.72695]
[1617652911745,13.9439,2107.3,2107.2,8.68405]
[1617652914145,13.0,2107.3,2107.2,7.72695]
[1617652916949,13.0,2107.3,2107.2,67.41345]
[1617652920151,13.0,2107.3,2107.2,7.72695]
[1617652924353,13.9591,2107.3,2107.2,7.72695]
[1617652924754,13.0,2107.3,2107.2,7.72695]
[1617652928157,71.6911,2107.3,2107.2,7.72695]
[1617652929858,74.59805,2107.3,2107.2,7.72695]
[1617652930460,76.51045,2107.3,2107.2,7.72695]
[1617652931658,74.59805,2107.3,2107.2,7.72695]
[1617652931859,71.6911,2107.3,2107.2,7.72695]
[1617652932261,13.0,2107.3,2107.2,7.72695]
[1617652932460,13.0,2107.3,2107.2,9.97495]
[1617652932860,13.0,2107.3,2107.2,10.92685]
[1617652933063,13.0,2107.3,2107.2,12.92685]
[1617652934263,12.8556,2107.3,2107.2,12.92685]
[1617652935164,11.8289,2107.3,2107.2,12.92685]
[1617652935366,11.4088,2107.3,2107.2,12.92685]
[1617652936868,11.4088,2107.3,2107.2,8.67885]
[1617652937067,11.4088,2107.3,2107.2,7.72695]
[1617652937268,13.3386,2107.3,2107.2,7.72695]
[1617652942269,13.3386,2107.3,2107.2,5.82]
[1617652942874,13.3386,2107.3,2106.4,5.88]
[1617652943070,13.3386,2107.3,2107.2,5.88]
[1617652943470,13.3386,2107.3,2106.4,5.86]
[1617652943770,13.3386,2107.3,2107.2,5.72]
[1617652944170,13.3386,2107.3,2106.7,2.90695]
[1617652944369,13.3386,2107.3,2107.2,5.94]
[1617652944570,11.4088,2107.3,2106.8,5.88]
[1617652945872,2.90695,2106.9,2106.8,5.88]
[1617652950078,5.06395,2106.9,2106.8,5.88]
[1617652950279,58.93115,2106.9,2106.8,5.88]
[1617652952881,5.06395,2106.9,2106.8,5.88]
[1617652953081,2.90695,2106.9,2106.8,5.88]
[1617652953783,2.96284073,2106.9,2106.8,5.88]
[1617652954882,2.90695,2106.9,2106.8,5.88]
[1617652955884,2.96284102,2106.9,2106.8,5.88]
[1617652957685,2.90695,2106.9,2106.8,5.88]
[1617652961292,2.96283758,2106.9,2106.8,5.88]
[1617652964195,2.90695,2106.9,2106.8,5.88]
[1617652964396,2.90695,2106.9,2106.8,6.82]
[1617652964596,2.90695,2106.9,2106.8,5.88]
[1617652965800,3.86555,2106.9,2106.8,5.88]
[1617652966000,2.90695,2106.9,2106.8,5.88]
[1617652972801,4.74625,2106.9,2106.8,5.88]
[1617652973002,4.80208579,2106.9,2106.8,5.88]
[1617652974806,2.96278579,2106.9,2106.8,5.88]
[1617652975909,2.90695,2106.9,2106.8,5.88]
[1617652977509,5.38385,2106.9,2106.8,5.88]
[1617652978009,5.43965988,2106.9,2106.8,5.88]
[1617652979511,35.43965988,2106.9,2106.8,5.88]
[1617652979912,35.38385,2106.9,2106.0,5.85]
[1617652980112,68.478,2106.4,2105.7,5.9]
[1617652980313,70.4985,2106.4,2105.9,2.90695]
[1617652980511,70.4985,2106.4,2106.1,5.72]
[1617652980712,70.4985,2106.4,2106.0,0.12]
[1617652981111,70.4985,2106.4,2106.2,5.86]
[1617652981311,68.478,2106.4,2106.0,5.82]
[1617652981713,68.478,2106.4,2106.3,5.88]
[1617652981911,68.478,2106.4,2106.0,5.96]
[1617652982311,0.05581533,2106.8,2106.3,8.81695]
[1617652982512,0.05581533,2106.8,2106.3,2.90695]
[1617652982912,0.05581533,2106.8,2106.4,5.86]
[1617652983915,0.05583487,2106.9,2106.4,5.86]
[1617652984114,0.05583126,2107.1,2106.4,5.86]
[1617652984316,0.05583126,2107.1,2107.0,2.90695]
[1617652984515,0.05582754,2107.2,2107.0,2.90695]
[1617652984715,0.05582754,2107.2,2107.1,5.84]
[1617652984917,11.46462618,2107.3,2107.1,5.84]
[1617652985115,11.46462618,2107.3,2107.0,8.60695]
[1617652985315,11.46462618,2107.3,2107.1,5.82]
[1617652985515,11.4088,2107.3,2107.1,5.82]
[1617652986618,0.05582888,2107.2,2107.1,5.82]
[1617652987719,1.7901,2107.2,2107.1,5.82]
[1617652988322,2.23678753,2107.2,2107.1,5.82]
[1617652988530,2.23678753,2107.2,2106.4,2.90695]
[1617652988724,2.23678753,2107.2,2107.1,5.89]
[1617652989121,1.7901,2107.2,2106.5,5.73]
[1617652989520,0.05583861,2106.8,2106.5,5.73]
[1617652990422,2.90695,2106.6,2106.5,5.73]
[1617652993623,73.72025,2106.6,2106.5,5.73]
[1617652994224,73.72025,2106.6,2105.6,5.94]
[1617652994425,70.8133,2106.6,2106.0,2.90695]
[1617652994624,70.8133,2106.6,2106.5,5.9]
[1617652994825,70.8133,2106.6,2106.1,5.84]
[1617652995026,2.22703894,2106.6,2106.1,5.84]
[1617652995227,2.22703894,2106.6,2106.5,5.7]
[1617652995436,2.22703894,2106.6,2106.2,56.8009]
[1617652995637,0.27919358,2106.8,2106.2,56.8009]
[1617652995638,0.05583754,2106.7,2106.3,5.96]
[1617652995830,0.05583754,2106.7,2106.5,5.78]
[1617652996030,0.05583754,2106.7,2106.2,56.8009]
[1617652996231,0.05583485,2106.8,2106.4,5.91]
[1617652996426,0.05583485,2106.8,2106.6,8.79695]
[1617652996830,0.05583485,2106.8,2106.6,2.90695]
[1617652997032,0.05583485,2106.8,2106.7,5.76]
[1617652998527,2.96278485,2106.8,2106.7,5.76]
[1617653000227,2.90695,2106.8,2106.7,5.76]
[1617653000829,3.84925,2106.8,2106.7,5.76]
[1617653001030,2.90695,2106.8,2106.7,5.76]
[1617653001329,3.18613656,2106.8,2106.7,5.76]
[1617653001731,3.35367544,2106.8,2106.3,5.89]
[1617653001929,5.45847544,2106.8,2106.3,5.89]
[1617653002133,5.45847544,2106.8,2106.7,5.81]
[1617653002330,5.45847544,2106.8,2106.3,5.77]
[1617653002535,2.90695,2106.4,2106.3,5.77]
[1617653002731,2.90695,2106.4,2106.0,2.90695]
[1617653002931,2.90695,2106.4,2106.3,5.83]
[1617653003331,2.9348479,2106.4,2106.1,5.79]
[1617653003531,2.9348479,2106.4,2106.3,5.9]
[1617653003932,2.9348479,2106.4,2106.1,5.75]
[1617653007040,0.02790547,2106.3,2106.1,5.75]
[1617653007239,0.02790547,2106.3,2105.9,62.5997]
[1617653007441,2.93485472,2106.4,2106.2,5.74]
[1617653007839,2.90695,2106.4,2106.0,5.7]
[1617653008038,2.90695,2106.4,2106.3,5.83]
[1617653008440,2.90695,2106.4,2106.0,5.87]
[1617653008639,2.90695,2106.4,2106.1,2.90695]
[1617653008840,2.90695,2106.4,2106.3,5.73]
[1617653009041,2.90695,2106.4,2106.2,5.95]
[1617653009240,2.90695,2106.4,2106.1,2.90695]
[1617653009441,2.90695,2106.4,2106.2,5.76]
[1617653012643,2.90695,2106.4,2106.0,5.78]
[1617653012846,5.15175351,2106.4,2106.0,5.78]
[1617653013043,5.15175351,2106.4,2106.3,5.88]
[1617653013243,5.15175351,2106.4,2106.0,5.71]
[1617653013443,84.07455,2106.4,2106.0,5.71]
[1617653013644,84.07455,2106.4,2106.3,5.84]
[1617653013844,84.07455,2106.4,2105.9,2.90695]
[1617653014044,84.07455,2106.4,2106.0,5.85]
[1617653014246,84.07455,2106.4,2106.3,5.73]
[1617653014645,84.07455,2106.4,2106.0,5.97]
[1617653014844,84.07455,2106.4,2106.3,5.77]
[1617653015046,84.07455,2106.4,2106.0,5.82]
[1617653015446,84.07455,2106.4,2106.3,5.9]
[1617653015645,84.07455,2106.4,2105.9,2.90695]
[1617653015845,84.07455,2106.4,2106.0,5.98]
[1617653016045,84.07455,2106.4,2106.3,5.91]
[1617653016245,84.07455,2106.4,2105.9,2.90695]
[1617653016446,84.07455,2106.4,2106.0,5.77]
[1617653016645,2.90695,2106.1,2105.9,2.90695]
[1617653017047,2.90695,2106.1,2106.0,5.73]
[1617653035268,2.93490316,2106.1,2105.5,5.76]
[1617653035470,5.47080316,2106.1,2105.5,5.76]
[1617653035668,5.47080316,2106.1,2106.0,5.75]
[1617653035868,5.47080316,2106.1,2105.6,5.94]
[1617653036082,5.49875826,2106.1,2105.6,5.94]
[1617653036271,5.49875826,2106.1,2105.5,5.8]
[1617653036471,5.47079641,2106.1,2105.4,5.85]
[1617653036670,2.56384641,2106.1,2105.7,5.71]
[1617653036871,2.56384641,2106.1,2105.6,8.75695]
[1617653037071,2.56384641,2106.1,2105.6,2.90695]
[1617653037270,2.56384641,2106.1,2105.7,5.87]
[1617653038677,2.56384641,2106.1,2106.0,2.90695]
[1617653038876,2.5359,2106.1,2106.0,2.90695]
[1617653039076,2.5359,2106.1,2106.0,8.75695]
[1617653039277,2.56384493,2106.1,2106.0,8.75695]
[1617653040176,0.02794493,2106.1,2106.0,8.75695]
[1617653040679,2.93489493,2106.1,2106.0,8.75695]
[1617653041078,2.93489493,2106.1,2106.0,5.85]
[1617653041477,2.96284347,2106.1,2105.4,5.97]
[1617653041677,4.91434347,2106.1,2105.4,5.97]
[1617653041877,4.91434347,2106.1,2106.0,5.87]
[1617653042080,4.91434347,2106.1,2105.3,2.571]
[1617653042278,4.91434347,2106.1,2105.4,5.7]
[1617653042477,4.91434347,2106.1,2106.0,5.72]
[1617653042878,4.91434347,2106.1,2105.5,2.90695]
[1617653043077,4.91434347,2106.1,2106.0,5.85]
[1617653043281,4.85845,2106.1,2106.0,5.85]
[1617653043481,5.13806189,2106.1,2105.6,1.74]
[1617653043678,5.13806189,2106.1,2105.5,2.90695]
[1617653043880,5.13806189,2106.1,2106.0,5.83]
[1617653044082,5.13806189,2106.1,2105.6,5.83]
[1617653044486,5.13806189,2106.1,2106.0,5.96]
[1617653044687,5.13806189,2106.1,2105.6,5.98]
[1617653044987,5.13806189,2106.1,2105.5,2.90695]
[1617653044988,5.13806189,2106.1,2106.0,5.94]
[1617653045387,5.13806189,2106.1,2105.6,5.95]
[1617653045591,5.13806189,2106.1,2106.0,5.74]
[1617653045989,5.13806189,2106.1,2105.6,5.78]
[1617653046191,4.85845,2106.1,2106.0,5.84]
[1617653046490,4.85845,2106.1,2105.6,5.84]
[1617653046788,2.90695,2105.7,2105.5,75.88445]
[1617653047190,2.93491229,2105.7,2105.6,5.9]
[1617653047593,2.90695,2105.7,2105.6,5.9]
[1617653047792,2.90695,2105.7,2104.9,2.9]
[1617653048190,2.90695,2105.7,2105.6,5.84]
[1617653048391,2.93489232,2105.7,2104.9,5.81]
[1617653048791,0.02794232,2105.7,2105.6,5.94]
[1617653049192,0.02794232,2105.7,2105.3,5.88]
[1617653049392,0.02794232,2105.7,2105.6,5.7]
[1617653049693,0.02794232,2105.7,2105.3,5.89]
[1617653050193,0.02794232,2105.7,2105.6,5.86]
[1617653050395,0.02794232,2105.7,2105.3,5.92]
[1617653050793,2.90695,2105.4,2105.3,5.92]
[1617653050994,5.45895,2105.4,2105.3,5.92]
[1617653057703,5.45895,2105.4,2104.7,5.82]
[1617653057903,58.6319,2104.9,2104.7,5.82]
[1617653058104,58.6319,2104.9,2104.2,54.7307]
[1617653058105,60.468,2104.9,2104.6,4.43]
[1617653058304,60.468,2104.9,2104.8,5.82]
[1617653058704,60.468,2104.9,2104.7,5.72]
[1617653059103,2.90695,2104.8,2104.2,54.7307]
[1617653059305,2.90695,2104.8,2104.7,5.81]
[1617653059706,2.90695,2104.8,2104.2,54.7307]
[1617653059907,2.90695,2104.8,2104.7,5.85]
[1617653060308,2.90695,2104.8,2104.2,54.7307]
[1617653060511,2.90695,2104.8,2104.7,5.75]
[1617653060911,2.90695,2104.8,2104.2,54.7307]
[1617653061111,2.90695,2104.8,2104.1,2.90695]
[1617653061112,1.8361,2104.9,2104.6,5.86]
[1617653061311,1.8361,2104.9,2104.3,5.92]
[1617653061712,1.8361,2104.9,2104.7,5.83]
[1617653061914,1.8361,2104.9,2104.4,5.83]
[1617653062312,1.8361,2104.9,2104.8,5.93]
[1617653062711,1.8361,2104.9,2104.1,2.90695]
[1617653062712,1.8361,2104.9,2104.5,5.83]
[1617653062917,1.8361,2104.9,2104.8,5.47]
[1617653063112,2.90695,2104.9,2104.8,5.47]
[1617653063314,2.90695,2104.9,2104.6,5.91]
[1617653063515,5.46395,2104.9,2104.5,5.82]
[1617653063713,5.46395,2104.9,2104.8,5.96]
[1617653063918,5.46395,2104.9,2104.7,5.91]
[1617653064114,5.46395,2104.9,2104.6,5.84]
[1617653064318,5.46395,2104.9,2104.8,5.4]
[1617653064516,5.46395,2104.9,2103.9,1.0]
[1617653064718,60.4512,2104.8,2104.7,5.88]
[1617653064915,60.4512,2104.8,2104.2,5.83]
[1617653065114,60.4512,2104.8,2104.3,2.90695]
[1617653065316,60.4512,2104.8,2104.3,8.82695]
[1617653065718,60.4512,2104.8,2104.3,2.90695]
[1617653065918,60.4512,2104.8,2104.4,5.97]
[1617653067120,2.90695,2104.5,2104.4,5.97]
[1617653072427,3.85705,2104.5,2104.4,5.97]
[1617653072626,2.90695,2104.5,2104.4,5.97]
[1617653082432,2.90695,2104.5,2104.4,8.1157]
[1617653082631,78.2206,2105.5,2104.5,55.4522]
[1617653083033,78.2206,2105.5,2104.6,7.71]
[1617653083234,0.02787821,2105.9,2105.4,2.90695]
[1617653083434,0.02787821,2105.9,2105.4,5.03775]
[1617653083636,0.02787635,2106.0,2105.4,5.03775]
[1617653083835,0.02787635,2106.0,2105.5,5.9]
[1617653085235,2.90695,2105.6,2105.5,5.9]
[1617653091740,74.19045,2105.6,2105.5,5.9]
[1617653091939,75.15415,2105.6,2105.5,5.9]
[1617653092240,74.19045,2105.6,2105.5,5.9]
[1617653093341,75.12955,2105.6,2105.5,5.9]
[1617653094039,74.19045,2105.6,2105.5,5.9]
[1617653096648,74.19045,2105.6,2104.9,5.88]
[1617653097047,74.19045,2105.6,2105.5,5.9]
[1617653097247,74.19045,2105.6,2104.9,5.74]
[1617653097448,74.19045,2105.6,2105.2,2.90695]
[1617653097648,74.19045,2105.6,2105.5,5.73]
[1617653097848,74.19045,2105.6,2105.3,5.85]
[1617653112265,74.19045,2105.6,2105.4,2.0]
[1617653112467,2.90695,2105.6,2105.5,5.98]
[1617653112665,2.90695,2105.6,2105.5,7.98]
[1617653113466,2.90695,2105.6,2105.5,10.88695]
[1617653115274,0.02791754,2106.1,2105.5,10.88695]
[1617653115467,0.05583507,2106.2,2105.5,10.88695]
[1617653115468,0.02791671,2106.3,2106.0,2.90695]
[1617653115668,0.02791671,2106.3,2106.1,2.0]
[1617653115868,0.02791671,2106.3,2106.2,5.71]
[1617653116468,59.40171671,2106.3,2106.2,5.71]
[1617653116769,59.42963334,2106.3,2106.2,5.71]
[1617653117567,62.33658334,2106.3,2106.2,5.71]
[1617653118770,62.33658334,2106.3,2106.1,5.87]
[1617653119169,62.33658334,2106.3,2106.2,5.81]
[1617653119371,62.33658334,2106.3,2106.0,2.90695]
[1617653119569,62.33658334,2106.3,2106.1,5.84]
[1617653119770,62.33658334,2106.3,2106.2,5.77]
[1617653120170,62.33658334,2106.3,2106.1,5.79]
[1617653120372,62.28075,2106.3,2106.2,5.82]
[1617653120676,62.28075,2106.3,2106.1,5.94]
[1617653121076,62.28075,2106.3,2106.2,5.93]
[1617653121283,62.28075,2106.3,2106.1,5.84]
[1617653121579,62.28075,2106.3,2106.2,5.72]
[1617653121980,62.28075,2106.3,2106.1,5.98]
[1617653122285,62.28075,2106.3,2106.2,5.96]
[1617653122686,62.28075,2106.3,2106.1,5.76]
[1617653122880,62.28075,2106.3,2106.2,5.73]
[1617653123082,62.33657606,2106.3,2106.2,5.73]
[1617653123277,62.33657606,2106.3,2106.1,5.98]
[1617653123481,62.33657606,2106.3,2106.2,5.91]
[1617653123886,62.33657606,2106.3,2106.1,5.74]
[1617653124081,62.33657606,2106.3,2106.0,2.90695]
[1617653124082,62.33657606,2106.3,2106.2,5.91]
[1617653124383,62.33657606,2106.3,2106.1,5.95]
[1617653124682,62.33657606,2106.3,2106.2,5.94]
[1617653125080,62.33657606,2106.3,2106.1,5.87]
[1617653125582,64.27297606,2106.3,2106.1,5.87]
[1617653126186,0.05584474,2106.2,2106.1,5.87]
[1617653127788,64.49637793,2106.3,2106.1,5.87]
[1617653129591,62.55997793,2106.3,2106.1,5.87]
[1617653132595,0.27926538,2106.2,2106.1,5.87]
[1617653133697,62.56000876,2106.3,2106.1,5.87]
[1617653134097,0.055851,2106.2,2106.1,5.87]
[1617653136400,62.28075,2106.3,2106.1,5.87]